Workbook

Sheet РТ 1 неделя
B8: с 6 по 11 февраля, с 20 по 25 февраля (РТ) МЛАДШИЕ
B9: Школа | C9: - | F9: Отд./корп | J9: День
B11: Прием пищи | C11: Раздел | D11: № рец. | E11: Блюдо | F11: Выход, г | G11: Цена | H11: Калорийность | I11: Белки | J11: Жиры | K11: Углеводы
B12: Завтрак | C12: гор.блюдо | D12: ТТК 2022 г | E12: Ёжики мясные с рисом в соусе томатном | F12: 100 | H12: 136.00 | I12: 6.10 | J12: 7.90 | K12: 10.23
C13: гор блюдо | D13: № 309/2015 г | E13: Макаронные изделия отварные | F13: 150 | H13: 127.00 | I13: 5.60 | J13: 5.06 | K13: 15.00
C14: гор.напиток | D14: ТТК 2021 г | E14: Напиток из замороженной смородины | F14: 200 | H14: 44.00 | I14: 0.10 | J14: 0.04 | K14: 10.71
B15: понедельник | C15: хлеб | E15: Хлеб ржано-пшеничный | F15: 15 | H15: 33.00 | I15: 0.75 | J15: 0.15 | K15: 6.75
C16: хлеб | E16: Хлеб пшеничный | F16: 15 | H16: 35.00 | I16: 1.14 | J16: 0.12 | K16: 7.38
D17: № 15/2015 г | E17: Сыр порционно | F17: 10 | H17: 35.00 | I17: 2.63 | J17: 2.66 | K17: 0.00
C18: печенье | E18: Печенье сдобное "Мягкое" | F18: 30 | H18: 159.00 | I18: 2.07 | J18: 7.94 | K18: 19.76
B20: ИТОГО | F20: =F12+F13+F14+F15+F16+F17+F18 -> 520 | G20: 64.19 | H20: =H12+H13+H14+H15+H16+H17+H18 -> 569 | I20: 18.39 | J20: 23.87 | K20: 69.83
B21: Завтрак | C21: гор.блюдо | D21: ТТК 2021 | E21: Жаркое из птицы | F21: 190 | H21: 243.00 | I21: 13.43 | J21: 12.10 | K21: 21.45
B22: вторник | C22: гор.напиток | D22: № 348/2015 | E22: Компот из сушеных плодов (урюк) | F22: 200 | H22: 100 | I22: 1 | J22: 0.08 | K22: 23.56
C23: хлеб | E23: Хлеб ржано-пшеничный | F23: 20 | H23: 44.00 | I23: 1.00 | J23: 0.20 | K23: 9.00
C24: хлеб | E24: Хлеб пшеничный | F24: 20 | H24: 47.00 | I24: 1.52 | J24: 0.16 | K24: 9.84
C25: фрукты | D25: № 338/2015г | E25: Плоды свежие (яблоки) | F25: 100 | H25: 47.00 | I25: 0.40 | J25: 0.40 | K25: 9.80
C26: закуска | D26: № 47/2015 г | E26: Салат из квашенной капусты | F26: 60 | H26: 51.00 | I26: 0.98 | J26: 3.05 | K26: 4.63
C27: печенье | D27: АКТ 2019 | E27: Печенье сдобное "Американер с кунжутом" | F27: 15 | H27: 80.00 | I27: 1.36 | J27: 4.16 | K27: 9.16
B29: ИТОГО | F29: =F21+F22+F23+F24+F25+F26+F27 -> 605 | G29: 64.19 | H29: =H21+H22+H23+H24+H25+H26+H27 -> 612.00 | I29: =I21+I22+I23+I24+I25+I26+I27 -> 19.69 | J29: =J21+J22+J23+J24+J25+J26+J27 -> 20.15 | K29: =K21+K22+K23+K24+K25+K26+K27 -> 87.44
C30: гор.блюдо | D30: ТТК 2021 г | E30: Котлеты "Аппетитные" | F30: 90 | H30: 133.00 | I30: 10.80 | J30: 7.75 | K30: 8.00
B31: Завтрак | C31: гор.блюдо | D31: № 303/2015 г | E31: Каша рисовая вязкая | F31: 155 | H31: 175 | I31: 2.34 | J31: 4.75 | K31: 23.98
C32: гор.напиток | D32: ТТК 2023 г | E32: Напиток из шиповника | F32: 200 | H32: 41.00 | I32: 0.01 | J32: 0.01 | K32: 10.18
B33: среда | C33: хлеб | E33: Хлеб ржано-пшеничный | F33: 20 | H33: 44.00 | I33: 1.00 | J33: 0.20 | K33: 9.00
C34: хлеб | E34: Хлеб пшеничный | F34: 15 | H34: 35.00 | I34: 1.14 | J34: 0.12 | K34: 7.38
C35: закуска | D35: № 45/2015 | E35: Салат из белокачанной капусты | F35: 60 | H35: 54.00 | I35: 0.93 | J35: 3.05 | K35: 5.64
C36: печенье | E36: Печенье весовое | F36: 30 | H36: 134.00 | I36: 2.07 | J36: 4.14 | K36: 22.23
B38: ИТОГО | F38: =F31+F32+F33+F34+F35+F36+F30 -> 570 | G38: 64.19 | H38: =H31+H32+H33+H34+H35+H36+H30 -> 616.00 | I38: =I31+I32+I33+I34+I35+I36+I30 -> 18.29 | J38: =J31+J32+J33+J34+J35+J36+J30 -> 20.02 | K38: =K31+K32+K33+K34+K35+K36+K30 -> 86.41
B39: Завтрак | C39: гор.блюдо | D39: ТТК | E39: Гуляш из птицы | F39: 100 | H39: 126.00 | I39: 8.05 | J39: 9.27 | K39: 3.13
C40: гор.блюдо | D40: № 302/2015 г | E40: Каша гречневая рассыпчатая | F40: 150 | H40: 213.00 | I40: 6.62 | J40: 5.39 | K40: 31.87
C41: гор.напиток | D41: ТТК 2021 г | E41: Напиток из замороженной вишни | F41: 200 | H41: 48.00 | I41: 0.12 | J41: 0.03 | K41: 11.50
C42: хлеб | E42: Хлеб ржано-пшеничный | F42: 15 | H42: 33.00 | I42: 0.75 | J42: 0.15 | K42: 6.75
C43: хлеб | E43: Хлеб пшеничный | F43: 20 | H43: 47.00 | I43: 1.52 | J43: 0.16 | K43: 9.84
B44: четверг | C44: закуска | D44: № 52/2015 г | E44: Свекла отварная с маслом | F44: 60 | H44: 56.00 | I44: 0.85 | J44: 3.65 | K44: 5.02
C45: фрукты | D45: №338/2015 г | E45: Плоды свежие (яблоки) | F45: 100 | H45: 47.00 | I45: 0.40 | J45: 0.40 | K45: 9.80
B47: ИТОГО | F47: =F39+F40+F41+F42+F43+F44+F45 -> 645 | G47: 64.19 | H47: =H39+H40+H41+H42+H43+H44+H45 -> 570.00 | I47: =I39+I40+I41+I42+I43+I44+I45 -> 18.31 | J47: =J39+J40+J41+J42+J43+J44+J45 -> 19.05 | K47: =K39+K40+K41+K42+K43+K44+K45 -> 77.91
B48: Завтрак | C48: гор.блюдо | D48: ТТК 2021 г | E48: Биточки рыбные из фарша минтая/огурец соленый (доп. гарнир) | F48: 90 | H48: 103 | I48: 12.2 | J48: 4.4 | K48: 4.8
C49: гор. блюдо | D49: № 312/2015 г | E49: Пюре кртофельное с маслом сливочным | F49: 155 | H49: 179 | I49: 3.32 | J49: 8.28 | K49: 22.07
C50: гор.напиток | D50: № 648/2004 г | E50: Напиток из замороженной черной смородины | F50: 200 | H50: 44 | I50: 0.10 | J50: 0.04 | K50: 10.71
B51: пятница | C51: хлеб | E51: Хлеб ржано-пшеничный | F51: 20 | H51: 44.00 | I51: 1.00 | J51: 0.20 | K51: 9.00
C52: хлеб | E52: Хлеб пшеничный | F52: 15 | H52: 35.00 | I52: 1.14 | J52: 0.12 | K52: 7.38
C53: фрукты | D53: № 338/2015 г | E53: Плоды свежие (яблоки) | F53: 100 | H53: 47.00 | I53: 0.40 | J53: 0.40 | K53: 9.80
C54: печенье | D54: АКТ 2019 | E54: Печенье сдобное "Морковное" | F54: 15 | H54: 66.00 | I54: 0.97 | J54: 2.44 | K54: 10.00
B56: ИТОГО | F56: =F48+F49+F50+F51+F52+F53+F54 -> 595 | G56: 64.19 | H56: =H48+H49+H50+H51+H52+H53+H54 -> 518 | I56: =I48+I49+I50+I51+I52+I53+I54 -> 19.13 | J56: =J48+J49+J50+J51+J52+J53+J54 -> 15.88 | K56: =K48+K49+K50+K51+K52+K53+K54 -> 73.76
B57: Завтрак | C57: гор.блюдо | D57: № 243/2015 г | E57: Птица запеченная | F57: 110 | H57: 120 | I57: 8.60 | J57: 9.20 | K57: 0.78
C58: гор.блюдо | D58: № 202/2015 г | E58: Макаронные изделия отваренные | F58: 155 | H58: 127 | I58: 5.60 | J58: 5.06 | K58: 15.00
C59: гор.напиток | D59: ТТК 2021 г | E59: Компот из сушеных плодов (урюк) | F59: 200 | H59: 100 | I59: 1.00 | J59: 0.08 | K59: 23.56
C60: хлеб | E60: Хлеб ржано-пшеничный | F60: 15 | H60: 33.00 | I60: 0.75 | J60: 0.15 | K60: 6.75
C61: хлеб | E61: Хлеб пшеничный | F61: 15 | H61: 35.00 | I61: 1.14 | J61: 0.12 | K61: 7.38
B62: Суббота | C62: печенье | D62: Акт 2019 | E62: Печенье сдобное "Шоколадное" | F62: 30 | H62: 157.00 | I62: 2.41 | J62: 7.24 | K62: 20.51
B64: ИТОГО | F64: =F57+F58+F59+F60+F62+F61 -> 525 | G64: 64.19 | H64: =H57+H58+H59+H60+H62+H61 -> 572 | I64: =I57+I58+I59+I60+I62+I61 -> 19.50 | J64: =J57+J58+J59+J60+J62+J61 -> 21.85 | K64: =K57+K58+K59+K60+K62+K61 -> 73.98

Sheet РТ 2 неделя
B7: Школа | C7: МБОУ"Отар-Дубровская СОШ" Пестречинский район | F7: Отд./корп | J7: День | K7: 2023-02-18
B9: Прием пищи | C9: Раздел | D9: № рец. | E9: Блюдо | F9: Выход, г | G9: Цена | H9: Калорийность | I9: Белки | J9: Жиры | K9: Углеводы
B10: Завтрак | C10: гор.блюдо | D10: № 243/2015 г | E10: Сосиски отварные | F10: 100 | H10: 144.00 | I10: 9.40 | J10: 11.00 | K10: 1.80
C11: гор.блюдо | D11: № 202/2015 г | E11: Макаронные изделия отварные | F11: 155 | H11: 127.00 | I11: 5.60 | J11: 5.06 | K11: 15.00
C12: гор.напиток | D12: № 348/2015 г | E12: Компот из плодов сушеных (урюк) | F12: 200 | H12: 100 | I12: 1.00 | J12: 0.08 | K12: 23.56
C13: хлеб | E13: Хлеб ржано-пшеничный | F13: 20 | H13: 33 | I13: 0.75 | J13: 0.15 | K13: 6.75
B14: Суббота | C14: хлеб | E14: Хлеб пшеничный | F14: 20 | H14: 35.00 | I14: 1.14 | J14: 0.12 | K14: 7.38
C15: фрукты | D15: № 338/2015 г | E15: Плоды свежие (яблоки) | F15: 100 | H15: 47.00 | I15: 0.40 | J15: 0.40 | K15: 9.80
B17: ИТОГО | F17: =F10+F11+F12+F13+F14+F15 -> 595 | G17: 64.19 | H17: =H10+H11+H12+H13+H14+H15 -> 486 | I17: =I10+I11+I12+I13+I14+I15 -> 18.29 | J17: =J10+J11+J12+J13+J14+J15 -> 16.81 | K17: =K10+K11+K12+K13+K14+K15 -> 64.29
